Cogmind - Beta 9.3 @@@ ROGUE MODE // 2019.12.28 @ 00:04:45 // Winter2019/RPGLIKE Player: Horse Result: Destroyed by Y-54 Guardian with Gatling Laser Performance ------------- Evolutions (4) 2000 Regions Visited (18) 3600 Robots Destroyed (438) 2190 Value Destroyed (15414) 15414 Prototype IDs (35) 700 Alien Tech Used (0) 0 Bonus (6609) 6609 TOTAL SCORE: 30513 Bonus ------- Triggered High Security 1000 High Alert Combat Kills 4696 Follower Combat Kills 189 Entered Garrisons 400 Used RIF Installer 1000 Met Data Miner 300 Friendly Fire -976 Cogmind --------- Core Integrity 0/600 Matter 270/300 Energy 900/900 System Corruption 0% Temperature Cool (279) Movement Hovering (94) Ox1 Location -6/Extension Parts ------- > --- POWER (2) -------- F-cell Engine F-cell Engine > --- PROPULSION (5) --- Gyrokinetic Inverter Gyrokinetic Inverter Gyrokinetic Inverter Gyrokinetic Inverter Gyrokinetic Inverter > --- UTILITY (8) ------ Target Analyzer Core Analyzer Microactuators Actuator Array Force Booster Improved Transmission Jammer Medium Reactive Plating Medium Insulated Plating > --- WEAPON (6) ------- Proton Missile Launcher Chainsword Chainsword Chainsword Great Axe Spear > --- INVENTORY (4) ---- Experimental Terrain Scanner Microactuators Peak State ------------ > --- POWER ------------ F-cell Engine F-cell Engine > --- PROPULSION ------- Gyrokinetic Inverter Gyrokinetic Inverter Gyrokinetic Inverter Gyrokinetic Inverter Gyrokinetic Inverter > --- UTILITY ---------- Target Analyzer Core Analyzer Microactuators Actuator Array Force Booster Improved Transmission Jammer Medium Reactive Plating Medium Insulated Plating > --- WEAPON ----------- Proton Missile Launcher Chainsword Chainsword Chainsword Great Axe Spear > --- INVENTORY -------- Experimental Terrain Scanner Microactuators [Rating: 98] Favorites ----------- Power Light Angular Momentum Engine Engine Light Angular Momentum Engine Power Core Light Nuclear Core Propulsion Gyrokinetic Inverter Leg Carbon-fiber Leg Hover Unit Gyrokinetic Inverter Utility Maneuvering Thrusters Device Maneuvering Thrusters Storage YI-UF0's Bottomless Matter Pit Processor Target Analyzer Hackware System Shield Protection Core Shielding Weapon Chainsword Energy Gun Medium Laser Energy Cannon Advanced Beam Cannon Ballistic Gun Assault Rifle Ballistic Cannon Advanced Assault Cannon Launcher Heavy Missile Launcher Impact Weapon Heavy Mace Slashing Weapon Chainsword Piercing Weapon Spear Build | -11 -10 -10 -9 -9 -8 -8 -8 -7 -7 -7 -7 -7 -7 -7 -7 -6 -6 -6 ------- Run | Scr Mat Min Mat Min Mat Gar Mat Fac Was Fac Gar Fac Low Low Dat Pro Fac Ext Slots Evolved 17 | 4 . 1 . . 4 . 5 . . 1 . 1 . . . . 1 . Power 1 | . . . . . . . . . . 1 . . . . . . . . Propulsion 4 | 1 . . . . 1 . 2 . . . . . . . . . . . Utility 7 | . . 1 . . 3 . 2 . . . . 1 . . . . . . Weapon 5 | 3 . . . . . . 1 . . . . . . . . . 1 . Parts Attached 147 | 6 13 5 15 . 28 . 16 . 4 20 9 11 2 3 . 6 7 2 Power 15 | 1 2 1 . . 2 . 1 . . 3 . . . 1 . 1 3 . Engine 12 | 1 1 . . . 2 . 1 . . 3 . . . . . 1 3 . Core 3 | . 1 1 . . . . . . . . . . . 1 . . . . Reactor . | . . . . . . . . . . . . . . . . . . . Propulsion 21 | 2 . 2 1 . 2 . 8 . . 5 . 1 . . . . . . Treads . | . . . . . . . . . . . . . . . . . . . Leg 7 | 2 . 2 1 . 2 . . . . . . . . . . . . . Wheel . | . . . . . . . . . . . . . . . . . . . Hover 14 | . . . . . . . 8 . . 5 . 1 . . . . . . Flight . | . . . . . . . . . . . . . . . . . . . Utility 58 | . 1 1 2 . 6 . 6 . 2 8 9 9 2 2 . 5 3 2 Device 39 | . . . . . 2 . 3 . . 7 9 8 2 2 . 3 1 2 Storage 3 | . . 1 . . . . 1 . . . . . . . . 1 . . Processor 3 | . . . . . . . 1 . 1 . . 1 . . . . . . Hackware 1 | . . . . . . . . . . 1 . . . . . . . . Protection 12 | . 1 . 2 . 4 . 1 . 1 . . . . . . 1 2 . Artifact . | . . . . . . . . . . . . . . . . . . . Weapon 53 | 3 10 1 12 . 18 . 1 . 2 4 . 1 . . . . 1 . Energy Gun 8 | 2 2 . . . 4 . . . . . . . . . . . . . Energy Cannon 5 | . . . 5 . . . . . . . . . . . . . . . Ballistic Gun 7 | 1 6 . . . . . . . . . . . . . . . . . Ballistic Cannon 5 | . . . . . 5 . . . . . . . . . . . . . Launcher 15 | . 1 1 7 . 3 . . . 2 . . 1 . . . . . . Special Weapon . | . . . . . . . . . . . . . . . . . . . Impact Weapon 1 | . . . . . 1 . . . . . . . . . . . . . Slashing Weapon 11 | . 1 . . . 5 . 1 . . 4 . . . . . . . . Piercing Weapon 1 | . . . . . . . . . . . . . . . . . 1 . Special Melee Weapon . | . . . . . . . . . . . . . . . . . . . Unidentified Prototypes 9 | . . 2 1 . 2 . 1 . 1 . . . . . . 1 1 . Parts Lost 5 | . . . 1 . 2 . . . . . . . . 1 . . 1 . Power 1 | . . . . . . . . . . . . . . 1 . . . . Propulsion . | . . . . . . . . . . . . . . . . . . . Utility 2 | . . . . . 1 . . . . . . . . . . . 1 . Weapon 2 | . . . 1 . 1 . . . . . . . . . . . . . Highest Loss Streak 2 | . . . 1 . 2 . . . . . . . . 1 . . 1 . Average Slot Usage (%) 96 | . 93 100 98 100 91 92 91 94 94 99 100 100 99 99 100 99 100 100 Engine 6 | . 9 5 . . 7 7 5 5 5 8 10 10 10 5 5 7 9 9 Core 2 | . 2 6 11 11 . . . . . . . . . 4 5 2 . . Leg 13 | . 25 22 21 22 23 23 8 . . . . . . . . . . . Hover 10 | . . . . . . . 15 27 27 26 26 25 25 25 25 25 23 23 Device 10 | . . . . . 7 15 15 22 22 20 21 20 19 20 20 19 18 15 Storage 1 | . . 9 7 . . . . . . . . . . . . . . . Processor 5 | . . . . . . . 5 5 5 10 10 13 15 15 15 15 14 12 Protection 11 | . 6 11 14 22 20 15 9 5 5 5 5 5 5 5 5 5 5 9 Energy Gun 2 | . 17 11 . . 2 . . . . . . . . . . . . . Energy Cannon 6 | . . . 23 33 11 . . . . . . . . . . . . . Ballistic Gun 1 | . 12 11 . . . . . . . . . . . . . . . . Launcher 5 | . 11 11 8 . 1 7 5 5 5 5 5 5 5 5 5 5 4 4 Slashing Weapon 16 | . 6 11 11 11 11 23 21 22 22 21 21 20 20 20 20 20 19 19 Naked Turns . | . . . . . . . . . . . . . . . . . . . Heaviest Build 83 | 8 15 26 30 23 51 43 48 48 48 53 53 53 53 53 50 72 80 83 Greatest Support 80 | 20 20 30 30 30 45 45 55 55 55 75 75 80 80 80 80 80 80 80 Greatest Overweight (x) 3 | 1 . 1 1 . 1 . 3 . . . . 1 . . . . . 1 Average Overweight (x) . | . . . . . . . . . . . . . . . . . . . Largest Inventory Capacity 4 | . . 1 4 4 4 4 4 4 4 4 4 4 4 4 4 4 4 4 Average Capacity 3 | . . . 3 4 4 4 4 4 4 4 4 4 4 4 4 4 4 4 Most Carried 4 | . . 1 4 4 4 4 4 4 4 4 4 4 4 4 4 4 4 3 Average Carried 3 | . . . 3 4 3 4 3 4 3 3 4 3 3 3 4 4 3 2 Final Capacity 4 | . . 1 4 4 4 4 4 4 4 4 4 4 4 4 4 4 4 4 Final Carried 4 | . . 1 4 4 4 4 4 4 4 4 4 4 3 4 4 4 3 2 Class Distribution -------------------- 26% | Hacker-Mutant 23% | Machinist-Ninja 13% | Hacker-Tank 12% | Scavenger-Mutant 7% | Hacker-Ninja 6% | Mutant 5% | Machinist-Mutant 3% | Gunner Dominant Class ---------------- Mutant | -10/Materials Scavenger-Mutant | -10/Mines Scavenger-Mutant | -9/Materials Hacker-Tank | -9/Mines Hacker-Mutant | -8/Materials Hacker-Mutant | -8/Garrison Hacker-Mutant | -8/Materials Hacker-Mutant | -7/Factory Hacker-Mutant | -7/Waste Hacker-Ninja | -7/Factory Machinist-Ninja | -7/Garrison Machinist-Ninja | -7/Factory Machinist-Ninja | -7/Lower Caves Machinist-Ninja | -7/Lower Caves Machinist-Ninja | -7/Data Miner Machinist-Ninja | -6/Proximity Caves Machinist-Ninja | -6/Factory Machinist-Ninja | -6/Extension Resources | -11 -10 -10 -9 -9 -8 -8 -8 -7 -7 -7 -7 -7 -7 -7 -7 -6 -6 -6 ----------- Run | Scr Mat Min Mat Min Mat Gar Mat Fac Was Fac Gar Fac Low Low Dat Pro Fac Ext Matter Collected 5599 | 180 439 820 1520 . 983 196 258 . . 361 327 230 40 55 . 80 110 . Remotely . | . . . . . . . . . . . . . . . . . . . Salvage Created 12931 | . 470 356 1742 394 2018 672 2406 . . 1232 615 1960 128 157 . 239 542 . Parts 798 | . 38 26 124 25 128 44 131 . . 92 30 102 6 15 . 18 19 . Haulers Intercepted 28 | . 1 . 4 . 5 . 6 . . 5 . 3 . . . . 4 . Recyclers Shooed 9 | . 1 1 2 1 2 . 1 . . . . 1 . . . . . . Parts Field Recycled . | . . . . . . . . . . . . . . . . . . . Retrieved Matter . | . . . . . . . . . . . . . . . . . . . Parts Self-Destructed 31 | . . . . . . . . . . . . . 6 10 . 15 . . Prevented 11 | . . . . . . . . . . . . . . 4 . 7 . . Kills | -11 -10 -10 -9 -9 -8 -8 -8 -7 -7 -7 -7 -7 -7 -7 -7 -6 -6 -6 ------- Run | Scr Mat Min Mat Min Mat Gar Mat Fac Was Fac Gar Fac Low Low Dat Pro Fac Ext Combat Hostiles Destroyed 306 | . 13 15 53 8 43 27 40 . . 29 27 31 3 7 . 8 2 . Melee 126 | . . 2 2 . 12 13 37 . . 18 9 23 3 3 . 2 2 . Guns 10 | . 6 3 . . 1 . . . . . . . . . . . . . Cannons 53 | . . . 22 8 23 . . . . . . . . . . . . . AOE 112 | . 7 10 29 . 5 14 3 . . 11 18 8 . 4 . 3 . . Classes Destroyed 18 | . 9 1 3 . 2 . . . . 1 . . 1 . . 1 . . Worker 25 | . 2 2 3 2 2 . 7 . . 1 . 6 . . . . . . Builder 15 | . 2 1 2 1 2 . 2 . . 2 . 2 . . . . 1 . Tunneler 3 | . 1 . . 1 . . 1 . . . . . . . . . . . Hauler 28 | . 1 . 4 . 5 . 6 . . 5 . 3 . . . . 4 . Recycler 19 | . 1 . 4 1 3 . 2 . . 2 . 6 . . . . . . Minesweeper 1 | . . . . . . . . . . . . . . . . 1 . . Mechanic 5 | . . 1 1 . 1 . 2 . . . . . . . . . . . Operator 11 | . 1 . 2 . 2 . 1 . . 3 . 1 . . . . 1 . Watcher 24 | . 2 . 5 . 4 . 5 . . 3 . 5 . . . . . . Swarmer 79 | . 6 9 11 3 7 11 . . . 6 15 3 . 6 . 2 . . Grunt 138 | . 7 6 29 5 22 11 22 . . 14 6 12 . . . 4 . . Brawler 12 | . . . 2 . 1 . 3 . . . 1 5 . . . . . . Duelist 10 | . . . . . 2 . 4 . . 1 2 1 . . . . . . Protector 6 | . . . 2 . 1 . 1 . . . . 2 . . . . . . Sentry 41 | . . . 9 . 9 4 9 . . 3 . 5 . 1 . . 1 . Hunter 12 | . . . . . 1 1 1 . . 2 3 2 1 . . . 1 . Programmer 7 | . . . . . . . . . . 3 . 1 1 . . 2 . . Thief 1 | . . . . . . . . . . . . . 1 . . . . . Best Kill Streak 15 | . 4 4 9 4 5 12 13 . . 9 10 15 1 3 . 4 2 . Combat Bots Only 12 | . 3 3 8 4 4 12 11 . . 5 10 6 1 3 . 4 1 . Max Kills in Single Turn 4 | . 2 3 3 1 3 3 2 . . 4 4 2 1 2 . 2 1 . Gunslinging . | . . . . . . . . . . . . . . . . . . . Exploded 4 | . 2 3 3 . 2 3 1 . . 2 4 2 . 2 . 2 . . Melee 1 | . . 1 1 . 1 1 1 . . 1 1 1 1 1 . 1 1 . Uniques/NPCs Destroyed 1 | . . 1 . . . . . . . . . . . . . . . . YI-UF0 (-10/Mines) Combat | -11 -10 -10 -9 -9 -8 -8 -8 -7 -7 -7 -7 -7 -7 -7 -7 -6 -6 -6 -------- Run | Scr Mat Min Mat Min Mat Gar Mat Fac Was Fac Gar Fac Low Low Dat Pro Fac Ext Damage Taken 12128 | . 518 472 1553 565 2109 1093 1011 . . 755 661 1750 104 346 . 411 686 94 Core 9499 | . 410 368 1203 436 1627 808 784 . . 599 535 1405 82 269 . 346 556 71 Absorbed by Shields 9 | . . . . . . . . . . . 9 . . . . . . . Redirected to Core 8250 | . 339 266 1006 394 1547 790 668 . . 507 448 1202 82 236 . 234 460 71 Core Remaining (%) 87 | 100 . 86 . 61 . . 100 . . . . . . . . 89 . . Volleys Fired 378 | . 54 22 90 25 103 14 7 . . 10 17 15 . 6 . 10 5 . Largest 4 | . 4 3 3 3 3 1 1 . . 1 1 1 . 1 . 1 1 . Hottest 206 | . 140 100 206 204 204 39 39 . . 39 39 39 . 39 . 39 39 . Shots Fired 734 | . 132 34 169 75 240 14 7 . . 10 17 15 . 6 . 10 5 . Gun 148 | . 109 21 . . 18 . . . . . . . . . . . . . Cannon 422 | . . . 141 75 206 . . . . . . . . . . . . . Launcher 164 | . 23 13 28 . 16 14 7 . . 10 17 15 . 6 . 10 5 . Special . | . . . . . . . . . . . . . . . . . . . Kinetic 106 | . 39 10 . . 57 . . . . . . . . . . . . . Thermal 433 | . 39 11 141 75 167 . . . . . . . . . . . . . Explosive 118 | . 23 13 28 . 1 14 7 . . 10 17 5 . . . . . . Electromagnetic 77 | . 31 . . . 15 . . . . . . 10 . 6 . 10 5 . Robot Hit Streak 16 | . 5 6 16 10 11 2 3 . . 6 5 5 . 4 . 4 1 . Robot Miss Streak 8 | . 7 4 8 3 5 1 1 . . 2 2 4 . 2 . 3 1 . Penetration Max . | . . . . . . . . . . . . . . . . . . . Secondary Targets . | . . . . . . . . . . . . . . . . . . . Shots Hit Robots 921 | . 58 36 105 39 199 38 130 . . 88 38 119 13 11 . 18 26 3 Core Hits 648 | . 39 27 122 15 90 33 76 . . 63 45 93 4 9 . 14 18 . Critical Hits 73 | . 1 . 16 8 17 2 7 . . 5 2 12 . . . . 3 . Critical Kills 29 | . . . 4 3 7 1 4 . . 4 . 4 . . . . 2 . Critical Parts Destroyed 43 | . 1 . 11 5 10 1 3 . . 1 2 8 . . . . 1 . Melee Attacks 843 | . 4 27 36 . 96 46 172 . 6 128 46 168 16 14 . 15 65 4 Impact . | . . . . . . . . . . . . . . . . . . . Slashing 821 | . 4 27 36 . 96 46 172 . 6 128 46 168 16 14 . 15 46 1 Piercing 22 | . . . . . . . . . . . . . . . . . 19 3 Sneak Attacks 104 | . 1 12 6 . 14 . 29 . . 12 . 20 . . . 1 8 1 Combat Hostiles 2 | . . . . . . . . . . 1 . . . . . . . 1 Follow-up Attacks 132 | . . . . . 6 8 27 . . 27 13 30 4 1 . 5 10 1 Damage Inflicted 47476 | . 1482 1901 5129 849 6045 2539 7342 . . 6223 3572 8272 499 562 . 1136 1750 175 Guns 736 | . 484 119 . . 133 . . . . . . . . . . . . . Cannons 5399 | . . . 1710 847 2842 . . . . . . . . . . . . . Explosions 15185 | . 929 734 2821 . 796 1366 968 . . 2072 2377 2106 . 173 . 597 246 . Melee 26154 | . 69 1048 598 . 2274 1173 6374 . . 4151 1195 6166 499 389 . 539 1504 175 Ramming 2 | . . . . 2 . . . . . . . . . . . . . . Kinetic 1154 | . 248 57 . . 849 . . . . . . . . . . . . . Thermal 5775 | . 287 62 1857 847 2126 . . . . . . 540 . . . 56 . . Explosive 11474 | . 830 734 2593 . 164 1366 968 . . 1784 2377 658 . . . . . . Electromagnetic 2917 | . 48 . 81 . 632 . . . . 288 . 908 . 173 . 541 246 . Impact . | . . . . . . . . . . . . . . . . . . . Slashing 25386 | . 69 1048 598 . 2274 1173 6374 . . 4151 1195 6166 499 389 . 539 865 46 Piercing 768 | . . . . . . . . . . . . . . . . . 639 129 Highest Corruption 2 | . 2 2 . . . . . . . . . 2 2 2 2 2 . . Average Corruption 1 | . 1 2 . . . . . . . . . 1 2 2 2 2 . . Corruption Purged . | . . . . . . . . . . . . . . . . . . . Effects 42 | . 2 16 . . . . . . . . . 11 3 5 . 5 . . Message Errors 12 | . 1 4 . . . . . . . . . 3 2 2 . . . . Heat Flow Errors 6 | . . 3 . . . . . . . . . 2 . . . 1 . . Energy Discharges 16 | . . 8 . . . . . . . . . 4 . 2 . 2 . . Data Loss (minor) 6 | . 1 . . . . . . . . . . 1 1 1 . 2 . . Targeting Errors 2 | . . 1 . . . . . . . . . 1 . . . . . . Overload Shots . | . . . . . . . . . . . . . . . . . . . Overflow Damage 3968 | . 65 293 173 3 463 166 1130 . . 586 184 853 20 . . 25 7 . Projectiles 55 | . . . 7 3 45 . . . . . . . . . . . . . Explosions 512 | . 36 19 58 . 11 81 58 . . 32 128 78 . . . 11 . . Melee 3401 | . 29 274 108 . 407 85 1072 . . 554 56 775 20 . . 14 7 . Knockbacks 3 | . . . . . 3 . . . . . . . . . . . . . Impact . | . . . . . . . . . . . . . . . . . . . Kinetic 3 | . . . . . 3 . . . . . . . . . . . . . Secondary . | . . . . . . . . . . . . . . . . . . . Self-Inflicted Damage 899 | . 91 110 321 . 3 172 6 . . 50 120 . . 13 . 13 . . Shots 33 | . 3 3 11 . 1 5 1 . . 1 6 . . 1 . 1 . . Rammed 1 | . . . . 1 . . . . . . . . . . . . . . Targets Rammed 2 | . . . . 2 . . . . . . . . . . . . . . Kicked 1 | . . . . 1 . . . . . . . . . . . . . . Crushed . | . . . . . . . . . . . . . . . . . . . Highest Temperature 467 | . 467 180 461 341 386 . . . . 352 313 436 . 324 106 260 114 261 Average Temperature 105 | . 146 47 132 106 128 . . . . 121 66 117 . 118 53 92 36 114 Received Heat Transfer 3338 | . 132 177 480 113 891 270 369 . . 198 90 474 . 36 . 27 39 42 Effects 60 | . 9 . 10 1 4 . . . . 5 6 13 . 7 . 5 . . Shutdowns 13 | . 2 . 3 . 2 . . . . 1 . 4 . 1 . . . . Energy Bleed 21 | . 2 . 1 1 1 . . . . 4 1 3 . 5 . 3 . . Interference 17 | . 3 . 2 . 1 . . . . . 5 4 . . . 2 . . Matter Decay 5 | . . . 2 . . . . . . . . 2 . 1 . . . . Short Circuit 3 | . 2 . 1 . . . . . . . . . . . . . . . Damage (minor) 1 | . . . 1 . . . . . . . . . . . . . . . Siege Activations . | . . . . . . . . . . . . . . . . . . . Robots Corrupted 3 | . . . . . . . . . . . . . . . . 3 . . Combat Hostiles 3 | . . . . . . . . . . . . . . . . 3 . . Parts Fried 17 | . . . . . 5 . . . . . . 9 . . . 3 . . Impact Corruptions . | . . . . . . . . . . . . . . . . . . . Robots Melted 2 | . . . . . 2 . . . . . . . . . . . . . Combat Hostiles 2 | . . . . . 2 . . . . . . . . . . . . . Parts Melted 13 | . . . 3 3 7 . . . . . . . . . . . . . Heat Transferred 10128 | . 655 185 3171 1517 3848 . . . . . . 652 . . . 100 . . Parts Sabotaged . | . . . . . . . . . . . . . . . . . . . Parts Stolen 1 | . . . . . . . . . . . . . 1 . . . . . Parts Stripped . | . . . . . . . . . . . . . . . . . . . Power Chain Reactions 11 | . 1 . . . 2 . . . . 1 . 4 . . . 3 . . Missiles Intercepted . | . . . . . . . . . . . . . . . . . . . Alert | -11 -10 -10 -9 -9 -8 -8 -8 -7 -7 -7 -7 -7 -7 -7 -7 -6 -6 -6 ------- Run | Scr Mat Min Mat Min Mat Gar Mat Fac Was Fac Gar Fac Low Low Dat Pro Fac Ext Peak Influence 1788 | . 321 372 929 393 826 1788 1725 791 323 1178 1662 1686 . . . . 796 260 Average Influence 626 | . 131 244 513 248 318 1206 1228 791 301 501 1331 1301 . . . . 499 224 Maximum Alert Level 5 | . 1 1 3 1 3 5 5 3 1 4 5 5 . . . . 3 1 Low Security (%) 19 | 100 74 19 7 34 40 . . . . 3 . . . . . . 18 . Level 1 27 | . 25 80 22 65 27 . . . 100 42 . . . . . . 21 100 Level 2 15 | . . . 49 . 18 11 . . . 32 . . . . . . 15 . Level 3 14 | . . . 20 . 12 31 19 100 . 16 22 4 . . . . 43 . Level 4 20 | . . . . . . 31 70 . . 5 68 84 . . . . . . Level 5 3 | . . . . . . 15 10 . . . 3 10 . . . . . . High Security . | . . . . . . 10 . . . . 5 . . . . . . . Max Security . | . . . . . . . . . . . . . . . . . . . Squads Dispatched 47 | . 3 1 11 1 5 . 6 . . 7 . 10 . . . . 3 . Investigation 19 | . 3 . 5 1 2 . 1 . . 3 . 3 . . . . 1 . Extermination 3 | . . . . . . . . . . 2 . 1 . . . . . . Reinforcement 10 | . . . 3 . 1 . 2 . . 1 . 2 . . . . 1 . Assault 13 | . . 1 3 . 1 . 3 . . 1 . 3 . . . . 1 . Garrison 2 | . . . . . 1 . . . . . . 1 . . . . . . Intercept . | . . . . . . . . . . . . . . . . . . . Construction Impeded 4 | . . . 1 . . . 1 . . 1 . 1 . . . . . . Haulers Reinforced 1 | . . . . . . . . . . . . 1 . . . . . . Stealth | -11 -10 -10 -9 -9 -8 -8 -8 -7 -7 -7 -7 -7 -7 -7 -7 -6 -6 -6 --------- Run | Scr Mat Min Mat Min Mat Gar Mat Fac Was Fac Gar Fac Low Low Dat Pro Fac Ext Distress Signals 11 | . . . 5 . 1 . 2 . . . . 2 . . . . 1 . Communications Jammed 189 | . . . . . 45 . 65 . . 17 . 61 . . . . 1 . Distress Signals 188 | . . . . . 45 . 65 . . 17 . 60 . . . . 1 . Times Spotted 472 | . 21 16 72 20 69 27 63 . 4 47 23 71 3 7 . 12 15 2 Peak Tracking Total 12 | . 4 4 8 7 6 11 7 . 5 6 7 12 1 3 . 4 7 2 Tactical Retreats 43 | . . . 5 6 6 1 4 . . 5 . 8 . 1 . 2 5 . Traps | -11 -10 -10 -9 -9 -8 -8 -8 -7 -7 -7 -7 -7 -7 -7 -7 -6 -6 -6 ------- Run | Scr Mat Min Mat Min Mat Gar Mat Fac Was Fac Gar Fac Low Low Dat Pro Fac Ext Traps Triggered 13 | . 2 . 2 . 1 . . 1 . 1 3 3 . . . . . . Indirectly 1 | . . . . . 1 . . . . . . . . . . . . . Trap Hack Attempts . | . . . . . . . . . . . . . . . . . . . Triggered . | . . . . . . . . . . . . . . . . . . . Disarmed 6 | . . . 6 . . . . . . . . . . . . . . . Reprogrammed . | . . . . . . . . . . . . . . . . . . . Reused . | . . . . . . . . . . . . . . . . . . . Traps Extracted . | . . . . . . . . . . . . . . . . . . . Installed . | . . . . . . . . . . . . . . . . . . . Triggered . | . . . . . . . . . . . . . . . . . . . Machines | -11 -10 -10 -9 -9 -8 -8 -8 -7 -7 -7 -7 -7 -7 -7 -7 -6 -6 -6 ---------- Run | Scr Mat Min Mat Min Mat Gar Mat Fac Was Fac Gar Fac Low Low Dat Pro Fac Ext Machines Disabled 98 | . 9 4 9 2 9 10 3 . . 34 3 2 . . . . 12 1 Max in Single Turn 8 | . 1 1 2 1 1 1 1 . . 8 1 1 . . . . 2 1 Garrison Access 3 | . . . . . . . . . . 1 . 1 . . . . 1 . Garrison Relay 7 | . . . . . . 4 . . . . 3 . . . . . . . Phase Generator 1 | . . . . . . 1 . . . . . . . . . . . . Machines Sabotaged . | . . . . . . . . . . . . . . . . . . . Garrisons Compromised . | . . . . . . . . . . . . . . . . . . . Overloaded Fab Kills . | . . . . . . . . . . . . . . . . . . . Fab Network Shutdowns 2 | . . . . . . . . . . 1 . . . . . . 1 . Hacking | -11 -10 -10 -9 -9 -8 -8 -8 -7 -7 -7 -7 -7 -7 -7 -7 -6 -6 -6 --------- Run | Scr Mat Min Mat Min Mat Gar Mat Fac Was Fac Gar Fac Low Low Dat Pro Fac Ext Machines Accessed 87 | . 7 . 15 1 13 . 8 . . 16 . 14 1 1 4 . 7 . Terminals 56 | . 7 . 10 1 10 . 6 . . 8 . 9 . . . . 5 . Fabricators 7 | . . . . . . . . . . 3 . 3 . . . . 1 . Repair Stations 4 | . . . 2 . . . 1 . . 1 . . . . . . . . Recycling Units 5 | . . . 2 . 1 . 1 . . 1 . . . . . . . . Scanalyzers 3 | . . . 1 . 1 . . . . 1 . . . . . . . . Garrison Access 6 | . . . . . 1 . . . . 2 . 2 . . . . 1 . Total Hacks 342 | . 30 . 61 3 53 . 30 . . 63 . 44 1 1 31 . 25 . Successful 222 | . 14 . 42 1 37 . 20 . . 39 . 20 1 1 31 . 16 . Failed 120 | . 16 . 19 2 16 . 10 . . 24 . 24 . . . . 9 . Catastrophic 17 | . 1 . 4 . 4 . 2 . . 1 . 5 . . . . . . Database Lockouts . | . . . . . . . . . . . . . . . . . . . Manual 138 | . 19 . 20 3 23 . 20 . . 29 . 10 . . . . 14 . Terminals 233 | . 30 . 41 3 45 . 23 . . 35 . 34 . . . . 22 . Fabricators 20 | . . . . . . . . . . 10 . 8 . . . . 2 . Repair Stations 16 | . . . 9 . . . 3 . . 4 . . . . . . . . Recycling Units 15 | . . . 5 . 3 . 4 . . 3 . . . . . . . . Scanalyzers 17 | . . . 6 . 3 . . . . 8 . . . . . . . . Garrison Access 8 | . . . . . 2 . . . . 3 . 2 . . . . 1 . Terminal Hacks 126 | . 8 . 19 1 22 . 10 . . 15 . 11 1 1 31 . 7 . Record 11 | . . . . . . . . . . . . . . . 11 . . . Part Schematic 10 | . . . . . . . . . . 2 . . . . 8 . . . Robot Schematic 9 | . . . . . . . . . . . . . . . 9 . . . Robot Analysis 2 | . 1 . 1 . . . . . . . . . . . . . . . Prototype ID Bank 10 | . 1 . 2 . . . 1 . . . . 2 . . 3 . 1 . Open Door 2 | . . . . . . . . . . . . . 1 1 . . . . Level Access Points 1 | . . . . . . . . . . . . 1 . . . . . . Branch Access Points 5 | . . . 1 . 1 . 1 . . 1 . 1 . . . . . . Emergency Access Points 1 | . . . . . 1 . . . . . . . . . . . . . Machine Index 1 | . 1 . . . . . . . . . . . . . . . . . Terminal Index 6 | . 1 . 1 . 2 . 1 . . 1 . . . . . . . . Scanalyzer Index 1 | . . . . . . . . . . 1 . . . . . . . . Alert Level 8 | . 1 . 2 . 4 . . . . 1 . . . . . . . . Unreport Threat 22 | . . . 5 1 4 . 3 . . 5 . 2 . . . . 2 . Locate Traps 14 | . 3 . 2 . 2 . 2 . . 2 . 2 . . . . 1 . Disarm Traps 1 | . . . 1 . . . . . . . . . . . . . . . Security Status 1 | . . . . . 1 . . . . . . . . . . . . . Patrol Status 2 | . . . 1 . . . . . . . . . . . . . 1 . Recall Assault 1 | . . . . . . . . . . . . . . . . . 1 . Hauler Manifests 8 | . . . 2 . 3 . 1 . . 1 . 1 . . . . . . Registered Components 2 | . . . . . 1 . . . . . . 1 . . . . . . Zone Layout 8 | . . . 1 . 3 . 1 . . 1 . 1 . . . . 1 . Fabricator Hacks 14 | . . . . . . . . . . 6 . 6 . . . . 2 . Load Schematic 6 | . . . . . . . . . . 2 . 3 . . . . 1 . Build 8 | . . . . . . . . . . 4 . 3 . . . . 1 . Repair Station Hacks 13 | . . . 9 . . . 2 . . 2 . . . . . . . . Scan Component 7 | . . . 5 . . . 1 . . 1 . . . . . . . . Repair 6 | . . . 4 . . . 1 . . 1 . . . . . . . . Recycling Unit Hacks 6 | . . . 3 . 1 . 1 . . 1 . . . . . . . . Process 1 | . . . 1 . . . . . . . . . . . . . . . Retrieve Matter 1 | . . . 1 . . . . . . . . . . . . . . . Retrieve Components 4 | . . . 1 . 1 . 1 . . 1 . . . . . . . . Scanalyzer 16 | . . . 6 . 2 . . . . 8 . . . . . . . . Insert Component 8 | . . . 3 . 1 . . . . 4 . . . . . . . . Analyze 8 | . . . 3 . 1 . . . . 4 . . . . . . . . Garrison Access Hacks 5 | . . . . . 1 . . . . 2 . 1 . . . . 1 . Unlock Access 2 | . . . . . 1 . . . . 1 . . . . . . . . Seal Access 3 | . . . . . . . . . . 1 . 1 . . . . 1 . Unauthorized Hacks 105 | . 18 . 12 . 23 . 15 . . 16 . 5 . . . . 16 . Terminals 33 | . 6 . 4 . 8 . 4 . . 4 . 1 . . . . 6 . Track 4 | . 1 . . . 1 . . . . . . 1 . . . . 1 . Assimilate 5 | . . . . . 2 . . . . 2 . . . . . . 1 . Botnet 16 | . 3 . 3 . 3 . 3 . . 2 . . . . . . 2 . Disrupt 1 | . . . . . . . . . . . . . . . . . 1 . Operators 6 | . 2 . . . 2 . 1 . . . . . . . . . 1 . Sabotage 1 | . . . 1 . . . . . . . . . . . . . . . Fabricators 1 | . . . . . . . . . . 1 . . . . . . . . Report 1 | . . . . . . . . . . 1 . . . . . . . . Repair Stations . | . . . . . . . . . . . . . . . . . . . Recycling Units 6 | . . . 1 . 2 . 3 . . . . . . . . . . . Reject 2 | . . . . . 1 . 1 . . . . . . . . . . . Recyclers 3 | . . . 1 . 1 . 1 . . . . . . . . . . . Mask 1 | . . . . . . . 1 . . . . . . . . . . . Scanalyzers 1 | . . . . . 1 . . . . . . . . . . . . . Extract 1 | . . . . . 1 . . . . . . . . . . . . . Garrison Access 1 | . . . . . . . . . . . . 1 . . . . . . Reprogram 1 | . . . . . . . . . . . . 1 . . . . . . Data Cores Recovered 3 | . 1 . . . . . . . . 1 . 1 . . . . . . Used . | . . . . . . . . . . . . . . . . . . . Hacking Detections 65 | . 7 . 10 1 10 . 6 . . 13 . 13 . . . . 5 . Full Trace Events 21 | . 6 . 4 1 2 . 1 . . 3 . 3 . . . . 1 . Feedback Events . | . . . . . . . . . . . . . . . . . . . Feedback Blocked . | . . . . . . . . . . . . . . . . . . . Robot Schematics Acquired 9 | . . . . . . . . . . . . . . . 9 . . . Robots Built . | . . . . . . . . . . . . . . . . . . . Matter . | . . . . . . . . . . . . . . . . . . . Time . | . . . . . . . . . . . . . . . . . . . Total Robot Build Rating . | . . . . . . . . . . . . . . . . . . . Part Schematics Acquired 22 | . . . 3 . 5 . . . . 6 . . . . 8 . . . Parts Built 10 | . . . . . . . . . . 5 . 4 . . . . 1 . Matter 1425 | . . . . . . . . . . 570 . 570 . . . . 285 . Time 473 | . . . . . . . . . . 142 . 179 . . . . 152 . Total Part Build Rating 53 | . . . . . . . . . . 27 . 21 . . . . 5 . Parts Repaired 6 | . . . 4 . . . 1 . . 1 . . . . . . . . Time 277 | . . . 213 . . . 38 . . 26 . . . . . . . . Parts Recycled . | . . . . . . . . . . . . . . . . . . . Recycled Matter 183 | . . . 183 . . . . . . . . . . . . . . . Retrieved Matter 361 | . . . 361 . . . . . . . . . . . . . . . Retrieved Components 21 | . . . 10 . 9 . 1 . . 1 . . . . . . . . Parts Scanalyzed 8 | . . . 3 . 1 . . . . 4 . . . . . . . . Part Schematics Acquired 8 | . . . 3 . 1 . . . . 4 . . . . . . . . Parts Damaged 3 | . . . 2 . . . . . . 1 . . . . . . . . Bothacking | -11 -10 -10 -9 -9 -8 -8 -8 -7 -7 -7 -7 -7 -7 -7 -7 -6 -6 -6 ------------ Run | Scr Mat Min Mat Min Mat Gar Mat Fac Was Fac Gar Fac Low Low Dat Pro Fac Ext Used RIF Installer 2 | . . . . . . 1 . . . . 1 . . . . . . . Alert ID Control 1 | . . . . . . . . . . . 1 . . . . . . . Robots Hacked . | . . . . . . . . . . . . . . . . . . . Non-combat . | . . . . . . . . . . . . . . . . . . . Combat . | . . . . . . . . . . . . . . . . . . . Robot Hacks Applied . | . . . . . . . . . . . . . . . . . . . Relay Couplers Released 12 | . . . . . . 8 . . . . 4 . . . . . . . Machine Destruction 12 | . . . . . . 8 . . . . 4 . . . . . . . Robots Rewired . | . . . . . . . . . . . . . . . . . . . Allies Hacked . | . . . . . . . . . . . . . . . . . . . Hacks Repelled . | . . . . . . . . . . . . . . . . . . . Allies | -11 -10 -10 -9 -9 -8 -8 -8 -7 -7 -7 -7 -7 -7 -7 -7 -6 -6 -6 -------- Run | Scr Mat Min Mat Min Mat Gar Mat Fac Was Fac Gar Fac Low Low Dat Pro Fac Ext Total Allies 8 | . . 1 . 3 1 . . . . 2 . . . . . 1 . . Largest Group 3 | . . 1 . 3 1 . . . . 2 . . . . . 1 . . Highest-Rated Group 94 | . . 31 . 40 10 . . . . 36 . . . . . 94 . . Highest-Rated Ally 94 | . . 31 . 16 10 . . . . 26 . . . . . 94 . . Total Orders 4 | . . . . . . . . . . 4 . . . . . . . . GOTO 2 | . . . . . . . . . . 2 . . . . . . . . FOLLOW 2 | . . . . . . . . . . 2 . . . . . . . . Ally Attacks 42 | . . 6 . 23 . . . . . . . . . . . 13 . . Total Damage 696 | . . 86 . 278 . . . . . . . . . . . 332 . . Kills 10 | . . 2 . 5 . . . . . . . . . . . 3 . . Allies Corrupted . | . . . . . . . . . . . . . . . . . . . Allies Melted . | . . . . . . . . . . . . . . . . . . . Intel | -11 -10 -10 -9 -9 -8 -8 -8 -7 -7 -7 -7 -7 -7 -7 -7 -6 -6 -6 ------- Run | Scr Mat Min Mat Min Mat Gar Mat Fac Was Fac Gar Fac Low Low Dat Pro Fac Ext Robot Analysis Total 2 | . 1 . 1 . . . . . . . . . . . . . . . Derelict Logs Recovered 6 | . . 2 . . . . . . . . . . 1 2 . 1 . . Drone Launches . | . . . . . . . . . . . . . . . . . . . Drone Recoveries . | . . . . . . . . . . . . . . . . . . . Exploration | -11 -10 -10 -9 -9 -8 -8 -8 -7 -7 -7 -7 -7 -7 -7 -7 -6 -6 -6 ------------- Run | Scr Mat Min Mat Min Mat Gar Mat Fac Was Fac Gar Fac Low Low Dat Pro Fac Ext Turns Passed 14960 | 36 1041 1180 1862 658 2385 784 1507 13 92 1394 413 1191 504 568 41 746 507 38 Spaces Moved 11998 | 30 690 800 953 424 1254 498 1049 38 144 1575 383 994 820 762 76 926 537 45 Core 14 | 14 . . . . . . . . . . . . . . . . . . Treads . | . . . . . . . . . . . . . . . . . . . Legs 4927 | 16 690 800 953 424 1254 498 292 . . . . . . . . . . . Wheels . | . . . . . . . . . . . . . . . . . . . Hover 7057 | . . . . . . . 757 38 144 1575 383 994 820 762 76 926 537 45 Flight . | . . . . . . . . . . . . . . . . . . . Fastest Speed 34 | 50 120 120 120 120 120 120 34 34 34 34 50 50 54 54 54 54 54 54 Average Speed 80 | 92 120 123 124 120 122 120 69 34 34 47 50 53 54 54 54 54 54 55 Slowest Speed 250 | 120 120 150 150 120 150 120 250 34 34 50 50 106 54 54 54 54 54 94 Overloaded Moves . | . . . . . . . . . . . . . . . . . . . Propulsion Burnouts . | . . . . . . . . . . . . . . . . . . . Robots Hopped . | . . . . . . . . . . . . . . . . . . . Cave-ins Triggered . | . . . . . . . . . . . . . . . . . . . Exploration Rate (%) 65 | 4 98 99 94 44 96 97 93 2 85 54 82 39 96 85 61 94 15 9 Regions Visited 18 Branch Regions 7 Pre-discovered Areas 2 | . . 1 . . . . . . . . . . . . 1 . . . Known Exits Taken 6 | . . . 1 . 1 . . . . 1 . 1 . . . 1 1 . Unknown Exits Taken 8 | 1 1 1 . 1 . . 1 . . . . . 1 1 1 . . . Scrap Searched 8 | . . 3 . . . . . . . . . . 1 2 . 2 . . Spaces Dug 98 | . 1 . 8 . 11 8 15 . 4 15 1 18 . 3 . 1 13 . Terrain Destroyed 1272 | . 104 76 316 3 51 229 105 . 4 106 140 85 . 3 . 15 35 . Melee 91 | . 1 . 8 . 11 1 15 . 4 15 1 18 . 3 . 1 13 . Projectile 27 | . . . 3 3 21 . . . . . . . . . . . . . AOE 1154 | . 103 76 305 . 19 228 90 . . 91 139 67 . . . 14 22 . Actions | -11 -10 -10 -9 -9 -8 -8 -8 -7 -7 -7 -7 -7 -7 -7 -7 -6 -6 -6 --------- Run | Scr Mat Min Mat Min Mat Gar Mat Fac Was Fac Gar Fac Low Low Dat Pro Fac Ext Total 15547 | 35 795 903 1396 516 1730 608 1599 38 178 2069 532 1440 863 892 75 1142 682 54 Wait 1802 | . 8 14 223 45 124 43 325 . 23 328 73 225 30 87 . 166 84 4 Move 11983 | 29 689 799 952 424 1253 497 1048 38 143 1575 382 993 819 761 75 925 536 45 Hop . | . . . . . . . . . . . . . . . . . . . Pick Up 24 | . . 3 7 . 3 . 2 . 1 4 . 2 . 1 . . 1 . Fast Attach 105 | 6 13 5 14 . 26 . 13 . 3 13 . 2 1 1 . 4 4 . Attach 6 | . . . 1 . 1 . . . 1 1 . 1 . . . . 1 . Detach 8 | . . . 3 . 1 . . . . 3 . 1 . . . . . . Swap 36 | . . . . . 1 . 3 . . 6 9 8 1 2 . 2 2 2 Drop 96 | . 11 6 13 . 25 . 10 . 3 14 . 5 1 . . 4 4 . Fire 378 | . 54 22 90 25 103 14 7 . . 10 17 15 . 6 . 10 5 . Melee 576 | . 4 27 36 . 88 34 123 . 4 73 22 100 9 9 . 8 36 3 Ram . | . . . . . . . . . . . . . . . . . . . Kick 2 | . . . . 2 . . . . . . . . . . . . . . Crush . | . . . . . . . . . . . . . . . . . . . Escape Stasis 12 | . . . . . . . . . . . 9 3 . . . . . . Rewire . | . . . . . . . . . . . . . . . . . . . Trap . | . . . . . . . . . . . . . . . . . . . Miscellaneous 519 | . 16 27 57 20 105 20 68 . . 42 20 85 2 25 . 23 9 . Route ------- -11/Scrapyard -10/Materials (discovered 5 exits: *Mat x3 / [*Min x2]) -10/Mines (discovered 3 exits: *Mat x2 / [*Exi]) -9/Materials (discovered 4 exits: *Mat x3 / *Min) -9/Mines (discovered 2 exits: *Mat x2) -8/Materials (discovered 4 exits: [*Fac x3] / Gar) -8/Garrison (discovered 3 exits: *Mat x3) -8/Materials (discovered 3 exits: [*Fac x3]) -7/Factory -7/Waste -7/Factory (discovered 7 exits: *Fac x2 / *Sto x2 / Low x2 / Gar) -7/Garrison (discovered 3 exits: *Fac x3) -7/Factory (discovered 7 exits: *Fac x4 / *Sto / *Low x2) -7/Lower Caves -7/Lower Caves (discovered 2 exits: Fac / *Dat) -7/Data Miner -6/Proximity Caves -6/Factory (discovered 4 exits: *Low x2 / *Ext x2) -6/Extension History --------- Turn | Location | Event 1 | -11/Scrapyard | Upgraded with Propulsion slot (x1) 1 | -11/Scrapyard | Upgraded with Weapon slot (x3) 19 | -11/Scrapyard | Discovered new exit (range 15) 37 | -11/Scrapyard | Entered Materials 166 | -10/Materials | Discovered new exit (range 16) 318 | -10/Materials | Discovered new exit (range 10) 582 | -10/Materials | Discovered new exit (range 10) 724 | -10/Materials | Reached level 2 839 | -10/Materials | Discovered new exit (range 13) 985 | -10/Materials | Discovered new exit (range 11) 988 | -10/Materials | Build established: Mutant 1078 | -10/Materials | Entered Mines 1080 | -10/Mines | Reached level 3 1123 | -10/Mines | Learned Materials terminal intel 1208 | -10/Mines | Deemed a non-threat by the Exiles lab entrance 1208 | -10/Mines | Discovered new exit (range 5) 1253 | -10/Mines | Assisted by bots powering up and referring to "LRC-V3" 1254 | -10/Mines | Destroyed YI-UF0 1266 | -10/Mines | Found Prototype Launcher 1266 | -10/Mines | Identified YI-UF0's Doublenader 1270 | -10/Mines | Upgraded with Utility slot (x1) 1272 | -10/Mines | Found Prototype Storage 1272 | -10/Mines | Identified YI-UF0's Bottomless Matter Pit 1348 | -10/Mines | Met a Derelict testing a Signal Generator 1358 | -10/Mines | Found Signal Generator 1559 | -10/Mines | Build established: Scavenger-Mutant 1644 | -10/Mines | Reached level 4 1644 | -10/Mines | Discovered new exit (range 7) 1742 | -10/Mines | Discovered new exit (range 6) 2258 | -10/Mines | Entered Materials 2259 | -9/Materials | Loaded intel: 12 terminal locations 2260 | -9/Materials | Reached level 5 2483 | -9/Materials | Reached level 6 2533 | -9/Materials | Discovered new exit (range 4) 2599 | -9/Materials | Reached level 7 2658 | -9/Materials | First assault squad dispatched 2735 | -9/Materials | Core integrity fell below 50% 2781 | -9/Materials | Destroyed 8 combat bots 2807 | -9/Materials | Reached level 8 2900 | -9/Materials | Repaired Broken Carbon-fiber Leg 3287 | -9/Materials | Discovered new exit (range 5) 3350 | -9/Materials | Core integrity fell below 20% 3596 | -9/Materials | Reached level 9 3610 | -9/Materials | Repaired Broken Remote Shield? 3689 | -9/Materials | Repaired Broken Adv. Beam Cannon 3717 | -9/Materials | Repaired Core Shielding 3819 | -9/Materials | Discovered new exit (range 10) 3863 | -9/Materials | Identified exit to Mines 4120 | -9/Materials | Entered Mines 4263 | -9/Mines | Build established: Hacker-Tank 4322 | -9/Mines | Reached level 10 4382 | -9/Mines | Assisted by bots powering up and referring to "LRC-V3" 4397 | -9/Mines | Discovered new exit (range 10) 4412 | -9/Mines | A weapon hastily lodged in a ceiling crevice suddenly fell to the ground 4520 | -9/Mines | Assembled infested the area 4525 | -9/Mines | Assisted by a Guerilla fighting off Assembled 4759 | -9/Mines | Discovered new exit (range 9) 4778 | -9/Mines | Entered Materials 4780 | -8/Materials | Reached level 11 4820 | -8/Materials | Identified exit to Garrison 4875 | -8/Materials | Garrison activated, responded to threat 4941 | -8/Materials | Core integrity fell below 50% 4988 | -8/Materials | Core integrity fell below 20% 5091 | -8/Materials | Upgraded with Propulsion slot (x1) 5321 | -8/Materials | Upgraded with Utility slot (x1) 5326 | -8/Materials | Upgraded with Utility slot (x1) 5347 | -8/Materials | Build established: Hacker-Mutant 5361 | -8/Materials | Upgraded with Utility slot (x1) 5449 | -8/Materials | Discovered new exit (range 5) 5492 | -8/Materials | Reached level 12 5961 | -8/Materials | Discovered new exit (range 16) 6169 | -8/Materials | Build established: Hacker-Tank 6287 | -8/Materials | Discovered new exit (range 13) 6576 | -8/Materials | Reached level 13 6778 | -8/Materials | First assault squad dispatched 6811 | -8/Materials | Build established: Hacker-Mutant 7163 | -8/Materials | Entered Garrison 7180 | -8/Garrison | Phase Generator disabled 7229 | -8/Garrison | Garrison Relay disabled 7238 | -8/Garrison | Triggered checkpoint 7314 | -8/Garrison | Triggered checkpoint 7428 | -8/Garrison | Discovered new exit (range 13) 7476 | -8/Garrison | Garrison Relay disabled 7482 | -8/Garrison | Triggered checkpoint 7564 | -8/Garrison | Triggered checkpoint 7576 | -8/Garrison | Triggered checkpoint 7576 | -8/Garrison | Reached level 14 7653 | -8/Garrison | Destroyed 12 combat bots 7719 | -8/Garrison | Discovered new exit (range 8) 7748 | -8/Garrison | Triggered checkpoint 7868 | -8/Garrison | Triggered checkpoint 7868 | -8/Garrison | High security lockdown imminent 7888 | -8/Garrison | Garrison Relay disabled 7922 | -8/Garrison | Discovered new exit (range 13) 7942 | -8/Garrison | Installed Relay Interface Framework 7947 | -8/Garrison | Entered Materials 8089 | -8/Materials | Repaired Hvy. Armor Plating 8139 | -8/Materials | Upgraded with Utility slot (x1) 8331 | -8/Materials | Discovered new exit (range 6) 8559 | -8/Materials | Upgraded with Propulsion slot (x1) 8752 | -8/Materials | Upgraded with Weapon slot (x1) 8772 | -8/Materials | Upgraded with Propulsion slot (x1) 9111 | -8/Materials | Reached level 15 9147 | -8/Materials | First assault squad dispatched 9215 | -8/Materials | Destroyed 11 combat bots 9216 | -8/Materials | Discovered new exit (range 15) 9413 | -8/Materials | Upgraded with Utility slot (x1) 9447 | -8/Materials | Discovered new exit (range 16) 9454 | -8/Materials | Entered Factory 9467 | -7/Factory | Sucked down chute 9467 | -7/Factory | Entered Waste 9469 | -7/Waste | Found Prototype Launcher 9469 | -7/Waste | Identified Mni. Smartbomb Launcher 9481 | -7/Waste | Spotted C-40 Crusher 9498 | -7/Waste | Spotted C-40 Crusher 9500 | -7/Waste | Spotted C-40 Crusher 9504 | -7/Waste | Spotted C-40 Crusher 9516 | -7/Waste | Spotted C-40 Crusher 9536 | -7/Waste | Spotted C-40 Crusher 9538 | -7/Waste | Discovered new exit (range 15) 9559 | -7/Waste | Entered Factory 9689 | -7/Factory | Reached level 16 9842 | -7/Factory | Fabricated Gyrokinetic Inverter (x2) 9866 | -7/Factory | Build established: Hacker-Ninja 9895 | -7/Factory | Fabricated Gyrokinetic Inverter (x2) 9982 | -7/Factory | Upgraded with Power slot (x1) 10183 | -7/Factory | Discovered new exit (range 17) 10273 | -7/Factory | Identified exit to Storage 10273 | -7/Factory | Identified exit to Lower Caves 10449 | -7/Factory | Discovered new exit (range 12) 10652 | -7/Factory | Local fabrication network quarantined 10673 | -7/Factory | Repaired Broken Actuator Array? 10675 | -7/Factory | Fabricated Actuator Array (x1) 10701 | -7/Factory | Reached level 17 10759 | -7/Factory | First assault squad dispatched 10953 | -7/Factory | Identified exit to Garrison 10953 | -7/Factory | Entered Garrison 11020 | -7/Garrison | Triggered checkpoint 11029 | -7/Garrison | Garrison Relay disabled 11041 | -7/Garrison | Destroyed 7 combat bots 11060 | -7/Garrison | Triggered checkpoint 11087 | -7/Garrison | Destroyed 10 combat bots 11124 | -7/Garrison | Discovered new exit (range 9) 11132 | -7/Garrison | Expanded RIF knowledge: Alert ID Control 11148 | -7/Garrison | Triggered checkpoint 11149 | -7/Garrison | Core integrity fell below 50% 11215 | -7/Garrison | Garrison Relay disabled 11218 | -7/Garrison | Triggered checkpoint 11225 | -7/Garrison | Discovered new exit (range 17) 11255 | -7/Garrison | Core integrity fell below 20% 11304 | -7/Garrison | Triggered checkpoint 11312 | -7/Garrison | Triggered checkpoint 11327 | -7/Garrison | Garrison Relay disabled 11342 | -7/Garrison | Reached level 18 11342 | -7/Garrison | High security lockdown imminent 11361 | -7/Garrison | Discovered new exit (range 10) 11366 | -7/Garrison | Entered Factory 11479 | -7/Factory | Garrison activated, responded to threat 11611 | -7/Factory | Discovered exit to Storage (range 17) 11630 | -7/Factory | Identified exit to Factory 11649 | -7/Factory | Upgraded with Utility slot (x1) 11684 | -7/Factory | Fabricated Imp. Transmission Jammer (x1) 11780 | -7/Factory | Build established: Machinist-Ninja 11909 | -7/Factory | Fabricated Proton Missile Launcher (x1) 11967 | -7/Factory | Fabricated Gyrokinetic Inverter (x2) 12166 | -7/Factory | First assault squad dispatched 12557 | -7/Factory | Entered Lower Caves 12566 | -7/Lower Caves | Maneuvering Thrusters stolen by Master Thief 12807 | -7/Lower Caves | Discovered new exit (range 11) 12864 | -7/Lower Caves | Learned Factory stockpile data 13061 | -7/Lower Caves | Entered another Lower Caves area 13088 | -7/Lower Caves | Discovered exit to Factory (range 13) 13136 | -7/Lower Caves | Attracted the attention of an 0b10 checkpoint 13367 | -7/Lower Caves | Spotted B-75 Beast 13428 | -7/Lower Caves | Learned location of 1 exit from Factory 13435 | -7/Lower Caves | Encountered a Warlord checkpoint 13478 | -7/Lower Caves | Discovered new exit (range 23) 13629 | -7/Lower Caves | Entered Data Miner 13629 | -7/Data Miner | Discovered new exit (range 6) 13640 | -7/Data Miner | Met Data Miner 13654 | -7/Data Miner | Learned location of Section 7 (-2) 13654 | -7/Data Miner | Acquired the access code to Warlord's prototype stash 13659 | -7/Data Miner | Received God Mode back door access code from Data Miner 13670 | -7/Data Miner | Entered Proximity Caves 13672 | -6/Proximity Caves | Reached level 19 13869 | -6/Proximity Caves | Escorted by Enhanced Grunt 14298 | -6/Proximity Caves | Received a Behemoth hack from an annoying Tinkerer 14416 | -6/Proximity Caves | Entered Factory 14417 | -6/Factory | Identified exit to Extension 14418 | -6/Factory | Identified exit to Lower Caves 14608 | -6/Factory | Reached level 20 14616 | -6/Factory | Upgraded with Weapon slot (x1) 14620 | -6/Factory | Local fabrication network quarantined 14730 | -6/Factory | Fabricated Exp. Terrain Scanner (x1) 14766 | -6/Factory | First assault squad dispatched 14871 | -6/Factory | Core integrity fell below 50% 14886 | -6/Factory | Discovered exit to Extension (range 30) 14913 | -6/Factory | Core integrity fell below 20% 14920 | -6/Factory | Discovered exit to Lower Caves (range 16) 14923 | -6/Factory | Entered Extension 14946 | -6/Extension | Disrupted transfer network 14961 | -6/Extension | Destroyed by Y-54 Guardian with Gatling Laser Last Messages --------------- 14912_ Maneuvering Thrusters destroyed. 14912_ Penetrated by Slug. 14915_ Slug penetrates Power Conduit. 14915_ Slug penetrates Wall. 14915_ Penetrated by Slug. 14920_ EXIT=FOUND: LOWER CAVES 14920_ Connecting with Terminal... >>Alert(Purge) Purged threat record, alert level lowered. >>Alert(Purge) Purged threat record, alert level lowered. LOCATION=EXTENSION GOAL=ESCAPE 14924_ T-07 Excavator exits Transfer Station. 14924_ K-01 Serf exits Transfer Station. 14926_ Transfer Station disabled. 14946_ ALERT: Transfer network disrupted, dispatching additional forces. 14954_ Discarded Transport Network Coupler. 14958_ Sneak attack on Y-54 Guardian. 14960_ Chainsword follow-up attack on Y-54 Guardian. Map ----- +----------------------------------------------------+ | | | | | | | | | | | | | | | | | | | | | | | | | | | | | ????#????????????#????????#?????##??????#?? | | #?##??#??#??##????#?#??##?#??????#????????? | | ????#???#?##???#???#???#??????????#?#?????? | | ??????###????????#????????####????#?#?????# | | ??#???####??? ?? ? ? ???? ??#??#???#????#?? | | ?????#???#?##?##???#????##??????????????#?? | | ????????#?##?##???#??###### ?#?##????#????? | | ?##?????#???????#?#?? +???##?# #??#??? | | ??###?#?##?#?###??#? = #?#??#??????##??? | | ??#????#?#?######### = # ?????? ???????? | | ????#??#?#?# Y = # #????#??#?##??# | | ?##?#?###??# @# * #? ?? ??????????? | | ??########## #?? ? #? ? ? ?????????? | | ????## ###??+##???? ??? ???? | | ##???# #?##?? ???????????? ???? | | ###### #?#?#??? ? ???? ????? ? | | ????## ?? ?? ?????? ? ??? | | ?????# #################?#?#??#??#?#??#???# | | #?#??# ###????#?##??##?#?#???#????????????? | | ?????# ##?##???#????#?#?#???#####????#??#?? | | #?##?# #??#???##?#?#??#????#??????#???????? | | #????# #???###?##??#???##?###????#?##??##?? | | ?????# ##?###??#???#?##?##?????#?##?#?#???? | | ##??## #???#####???#????#??###?#??????????? | | ???### #??#????#???????####??#?##?????????# | | ?##?## #??##????####???##???#?#?????????#?? | | ??#??# #?#?##???##???###?###??????????????? | | ?##??# #?##????##?#??#?##??#?#???#?#??????? | | ?#?#?# #?#???##?#???#??#??#???##?#?#??????? | | #??#?# ###?##?###?#??#?######?##?????#????? | | ?#?### ##?##??#?????#??#??##??????#???????? | | ##?### ##?#?????###??#?##?#?######????????? | | #??### #?#?#??##???#?#???????#????#???????? | | ?#?### #??###???#?#?##???##???#?###???????? | | ###### ######???#??#????##???###?#?##?????? | | ?# "" "" #??##?#?#??#??#?#??#???????????? | +----------------------------------------------------+ Best States ------------- Heat Dissipation 61 Energy Generation 46 Energy Capacity 900 Matter Stores 1639 Matter Capacity 1800 Sight Range 16 Robot Scan Range 16 Terrain Scan Range 30 Terrain Scan Density 210 Jamming Range 12 Armor Coverage 600 Resistance: KI 30 Resistance: EM 20 Core Shielding 20 Utility Shielding 66 Melee Speed Boost 20 Evasion (%) 64 Target Analysis 5 Core Analysis 6 Force Boost 3 Offensive Hacking 10 Defensive Hacking 20 Item Schematics ----------------- Remote Shield | -9/Materials | Scanalyzed Com. Battery | -9/Materials | Scanalyzed Adv. Beam Cannon | -9/Materials | Scanalyzed Katana | -8/Materials | Scanalyzed Lgt. Deuterium Engine | -8/Materials | Extracted Imp. Targeting Computer | -8/Materials | Extracted Hcp. Matter Pod | -8/Materials | Extracted Mni. Grenade Launcher | -8/Materials | Extracted Imp. Transmission Jammer | -7/Factory | Hacked Proton Missile Launcher | -7/Factory | Hacked Force Booster | -7/Factory | Scanalyzed Core Analyzer | -7/Factory | Scanalyzed Gyrokinetic Inverter | -7/Factory | Scanalyzed Actuator Array | -7/Factory | Scanalyzed Combat Drone Bay | -7/Data Miner | Free Lgt. Regenerative Plating | -7/Data Miner | Free Cmb. Gravmag System | -7/Data Miner | Free Exp. Terrain Scanner | -7/Data Miner | Free Exp. Terrain Scan Processor | -7/Data Miner | Free Tactical Coordination Suite | -7/Data Miner | Free Exp. Transmission Jammer | -7/Data Miner | Free Exp. ECM Suite | -7/Data Miner | Free Robot Schematics ------------------ S-27 Virus | -7/Data Miner | Free G-50 Soldier | -7/Data Miner | Free G-67 Veteran | -7/Data Miner | Free L-41 Fighter | -7/Data Miner | Free X-72 Disruptor | -7/Data Miner | Free H-66 Slayer | -7/Data Miner | Free P-70 Sage | -7/Data Miner | Free I-36 Angel | -7/Data Miner | Free I-47 Archangel | -7/Data Miner | Free Fabricated ------------ Gyrokinetic Inverter | x2 | -7/Factory | Preloaded Gyrokinetic Inverter | x2 | -7/Factory | Preloaded Actuator Array | x1 | -7/Factory Imp. Transmission Jammer | x1 | -7/Factory Proton Missile Launcher | x1 | -7/Factory Gyrokinetic Inverter | x2 | -7/Factory Exp. Terrain Scanner | x1 | -6/Factory Alien Tech Used ----------------- None Achievements -------------- None Challenges ------------ None RPGLIKE | -11 -10 -10 -9 -9 -8 -8 -8 -7 -7 -7 -7 -7 -7 -7 -7 -6 -6 -6 --------- Run | Scr Mat Min Mat Min Mat Gar Mat Fac Was Fac Gar Fac Low Low Dat Pro Fac Ext Levels Raised 19 | . 1 2 5 1 3 1 1 . . 2 1 . . . . 1 1 . XP Earned 31919 | 3000 2375 2849 7608 975 4720 1624 1176 734 97 2206 1158 705 131 209 105 1019 972 256 XP Spent 30470 | 2900 . 750 3760 . 8500 . 8020 . . 1290 . 2450 675 . . 425 1700 . Upgrades 51 | 4 . 2 10 . 12 . 8 . . 4 . 2 6 . . 2 1 . Power Slot 1 | . . . . . . . . . . 1 . . . . . . . . Propulsion Slot 4 | 1 . . . . 1 . 2 . . . . . . . . . . . Utility Slot 7 | . . 1 . . 3 . 2 . . . . 1 . . . . . . Weapon Slot 5 | 3 . . . . . . 1 . . . . . . . . . 1 . Heat Dissipation 6 | . . . 3 . . . . . . 2 . 1 . . . . . . Energy Generation 2 | . . . . . . . 1 . . 1 . . . . . . . . Inventory Capacity 4 | . . 1 3 . . . . . . . . . . . . . . . Sensor Range 8 | . . . . . . . . . . . . . 6 . . 2 . . Terrain Scan Density 2 | . . . . . . . 2 . . . . . . . . . . . Melee Accuracy 8 | . . . . . 8 . . . . . . . . . . . . . Hack Attack % 2 | . . . 2 . . . . . . . . . . . . . . . Hack Defense % 2 | . . . 2 . . . . . . . . . . . . . . . Protomatter Created 5167 | . 118 157 681 137 863 210 769 . . 577 207 930 15 172 . 262 69 . Integrity Restored 10916 | . 307 566 1216 410 2262 417 1440 . . 804 459 1839 43 495 . 457 201 . Core 8899 | . 280 414 1090 404 1854 417 1177 . . 528 459 1552 . 351 . 280 93 . Parts 2017 | . 27 152 126 6 408 . 263 . . 276 . 287 43 144 . 177 108 . Protomatter Decayed 1188 | . . 22 73 48 101 49 278 . . 197 19 175 . . . 226 . . Game ------ Seed StructuralPowerMachine Manual? 0 Play Time 02:45:59 Cumulative 846.5 hours Start 2019.12.27 @ 21:16:06 End 2019.12.28 @ 00:04:45 Sessions 1 Manual Loads 0 Difficulty Rogue Special Mode Winter2019/RPGLIKE Game No. 308 Rogue 308 Adventurer 0 Explorer 0 Win Type - Total 12 Types 11/0/1/0/0/0/0 Lore% 77 Gallery% 87 Achievement% 69 Wizard Run 0 Options --------- ASCII 0 Keyboard 1 Movement Numpad Keybinds 0 Fullscreen 2 Font 18/SmallcapsGlow Map View 112x50 Tactical HUD 1 Map Filters NONE Filters NONE Steam 1 RUN: c96460d9-bb28-4c5d-b6d3-576349f3cc96